Cogmind - Beta 12 *** ADVENTURER MODE // 2023.09.08 @ 00:11:15 Player: cinemabaroque Result: Self-destructed Performance ------------- Evolutions (1) 500 Regions Visited (4) 800 Robots Destroyed (11) 55 Value Destroyed (306) 306 Prototype IDs (4) 80 Alien Tech Used (0) 0 Bonus (0) 0 TOTAL SCORE: 1741 Bonus ------- None Cogmind --------- Core Integrity 99/400 Matter 255/300 Energy 23/100 System Corruption 0% Temperature Cool (0) Movement Core (150) Ox2 Location -9/Mines Parts ------- > --- POWER (1) -------- (None) > --- PROPULSION (2) --- (None) > --- UTILITY (3) ------ Small Storage Unit Advanced Targeting Computer > --- WEAPON (3) ------- Advanced Beam Cannon > --- INVENTORY (8) ---- Light Ion Engine Aluminum Leg Aluminum Leg Advanced Targeting Computer Weapon Shielding Medium Laser Peak State ------------ > --- POWER ------------ Light Ion Engine > --- PROPULSION ------- Light Treads Light Treads > --- UTILITY ---------- Small Storage Unit Advanced Targeting Computer Light Armor Plating > --- WEAPON ----------- Medium Laser Light Assault Rifle Shotgun > --- INVENTORY -------- Light Ion Engine Aluminum Leg Aluminum Leg Wheel Advanced Targeting Computer Weapon Shielding EM Pulse Gun Medium Laser [Rating: 13] Favorites ----------- Power Light Ion Engine Engine Light Ion Engine Propulsion Light Treads Treads Light Treads Utility Small Storage Unit Storage Small Storage Unit Processor Advanced Targeting Computer Protection Light Armor Plating Weapon Medium Laser Energy Gun Medium Laser Energy Cannon Advanced Beam Cannon Ballistic Gun Light Assault Rifle Build | -11 -10 -10 -9 -9 ------- Run | Jun Mat Min Mat Min Slots Evolved 2 | . . . 2 . Power . | . . . . . Propulsion . | . . . . . Utility 1 | . . . 1 . Weapon 1 | . . . 1 . Parts Attached 13 | 5 2 . 3 3 Power 1 | 1 . . . . Engine 1 | 1 . . . . Core . | . . . . . Reactor . | . . . . . Propulsion 2 | 1 1 . . . Treads 2 | 1 1 . . . Leg . | . . . . . Wheel . | . . . . . Hover . | . . . . . Flight . | . . . . . Utility 4 | 1 1 . 2 . Device . | . . . . . Storage 1 | 1 . . . . Processor 1 | . . . 1 . Hackware . | . . . . . Protection 2 | . 1 . 1 . Artifact . | . . . . . Weapon 6 | 2 . . 1 3 Energy Gun 3 | 1 . . . 2 Energy Cannon 1 | . . . . 1 Ballistic Gun 2 | 1 . . 1 . Ballistic Cannon . | . . . . . Launcher . | . . . . . Special Weapon . | . . . . . Impact Weapon . | . . . . . Slashing Weapon . | . . . . . Piercing Weapon . | . . . . . Special Melee Weapon . | . . . . . Unidentified Prototypes 1 | . . . . 1 Parts Lost 8 | . . . . 8 Power 1 | . . . . 1 Propulsion 2 | . . . . 2 Utility 1 | . . . . 1 Weapon 4 | . . . . 4 Highest Loss Streak 8 | . . . . 8 To Critical Strikes . | . . . . . Average Slot Usage (%) 86 | . 75 100 97 86 Engine 11 | . 14 14 11 8 Treads 18 | . 14 28 22 18 Storage 12 | . 14 14 11 11 Processor 5 | . . . 8 11 Protection 7 | . 4 14 12 7 Energy Gun 12 | . 14 14 11 11 Ballistic Gun 17 | . 14 14 21 18 Naked Turns . | . . . . . Heaviest Build 18 | 11 14 14 18 17 Greatest Support 40 | 20 40 40 40 40 Greatest Overweight (x) 3 | 3 . . . . Average Overweight (x) . | . . . . . Largest Inventory Capacity 8 | 8 8 8 8 8 Average Capacity 7 | 7 8 8 8 8 Most Carried 8 | 7 8 8 8 8 Average Carried 7 | 4 7 8 7 7 Final Capacity 8 | 8 8 8 8 8 Final Carried 8 | 7 8 8 8 6 Class Distribution -------------------- 55% | Mutant 40% | Gunner 3% | Tank Dominant Class ---------------- Mutant | -10/Materials Mutant | -10/Mines Gunner | -9/Materials Gunner | -9/Mines Resources | -11 -10 -10 -9 -9 ----------- Run | Jun Mat Min Mat Min Matter Collected 361 | 200 . 76 85 . Remotely . | . . . . . Salvage Created 382 | . . 95 137 150 Parts 17 | . . 1 13 3 Haulers Intercepted . | . . . . . Recyclers Shooed . | . . . . . Parts Field Recycled . | . . . . . Retrieved Matter . | . . . . . Parts Self-Destructed . | . . . . . Prevented . | . . . . . Kills | -11 -10 -10 -9 -9 ------- Run | Jun Mat Min Mat Min Combat Hostiles Destroyed 16 | . . 2 5 9 Guns 16 | . . 2 5 9 Classes Destroyed 6 | . . 1 3 2 Operator 1 | . . . 1 . Watcher 1 | . . . 1 . Swarmer 4 | . . . 4 . Grunt 3 | . . 2 1 . Demolisher 2 | . . . . 2 Assembled 7 | . . . . 7 Best Kill Streak 7 | . . 2 6 7 Combat Bots Only 7 | . . 2 5 7 Max Kills in Single Turn 2 | . . 1 2 1 Gunslinging . | . . . . . Exploded . | . . . . . Melee . | . . . . . Uniques/NPCs Destroyed . | . . . . . Combat | -11 -10 -10 -9 -9 -------- Run | Jun Mat Min Mat Min Damage Taken 1133 | . . 71 64 998 Core 311 | . . 10 17 284 Absorbed by Shields . | . . . . . Core Remaining (%) 98 | 100 . 96 . . Volleys Fired 41 | . . 6 11 24 Largest 3 | . . 2 3 3 Hottest 93 | . . 70 93 93 Shots Fired 89 | . . 12 33 44 Gun 89 | . . 12 33 44 Cannon . | . . . . . Launcher . | . . . . . Special . | . . . . . Kinetic 56 | . . 6 22 28 Thermal 31 | . . 6 11 14 Explosive . | . . . . . Electromagnetic 2 | . . . . 2 Robot Hit Streak 15 | . . 7 15 15 Robot Miss Streak 3 | . . 1 2 3 Penetration Max . | . . . . . Secondary Targets 6 | . . 1 2 3 Max Gunslinging Chain 1 | . . 1 1 1 Shots Hit Robots 70 | . . 10 20 40 Core Hits 39 | . . 5 12 22 Critical Kills . | . . . . . Critical Parts Destroyed 1 | . . . . 1 Critical Strikes 2 | . . 1 . 1 Burn 1 | . . 1 . . Destroy 1 | . . . . 1 Melee Attacks . | . . . . . Impact . | . . . . . Slashing . | . . . . . Piercing . | . . . . . Sneak Attacks . | . . . . . Combat Hostiles . | . . . . . Follow-up Attacks . | . . . . . Damage Inflicted 848 | . . 106 258 484 Guns 848 | . . 106 258 484 Cannons . | . . . . . Explosions . | . . . . . Melee . | . . . . . Ramming . | . . . . . Kinetic 485 | . . 30 158 297 Thermal 342 | . . 76 100 166 Explosive . | . . . . . Electromagnetic 21 | . . . . 21 Impact . | . . . . . Slashing . | . . . . . Piercing . | . . . . . Highest Corruption . | . . . . . Average Corruption . | . . . . . Corruption Purged . | . . . . . Corruption Blocked . | . . . . . Overload Shots . | . . . . . Overflow Damage . | . . . . . Projectiles . | . . . . . Explosions . | . . . . . Melee . | . . . . . Knockbacks . | . . . . . Impact . | . . . . . Kinetic . | . . . . . Secondary . | . . . . . Self-Inflicted Damage . | . . . . . Shots . | . . . . . Rammed . | . . . . . Targets Rammed . | . . . . . Kicked . | . . . . . Crushed . | . . . . . Highest Temperature 268 | . . 196 268 224 Average Temperature 108 | . . 103 117 103 Received Heat Transfer 178 | . . 57 9 112 Effects 2 | . . . . 2 Interference 2 | . . . . 2 Siege Activations . | . . . . . Robots Corrupted . | . . . . . Combat Hostiles . | . . . . . Parts Fried . | . . . . . Impact Corruptions . | . . . . . Robots Melted . | . . . . . Combat Hostiles . | . . . . . Parts Melted 2 | . . 1 . 1 Heat Transferred 1073 | . . 296 296 481 Parts Sabotaged . | . . . . . Parts Stolen . | . . . . . Parts Stripped . | . . . . . Power Chain Reactions . | . . . . . Missiles Intercepted . | . . . . . Alert | -11 -10 -10 -9 -9 ------- Run | Jun Mat Min Mat Min Peak Influence 149 | . 22 57 149 50 Initial 18 | . . 7 18 2 Average 14 | . 3 42 36 6 Maximum Alert Level . | . . . . . Low Security (%) 100 | 100 100 100 100 100 Level 1 . | . . . . . Level 2 . | . . . . . Level 3 . | . . . . . Level 4 . | . . . . . Level 5 . | . . . . . High Security . | . . . . . Max Security . | . . . . . Squads Dispatched . | . . . . . Investigation . | . . . . . Extermination . | . . . . . Reinforcement . | . . . . . Assault . | . . . . . Garrison . | . . . . . Intercept . | . . . . . Searches Triggered . | . . . . . Construction Impeded . | . . . . . Haulers Reinforced . | . . . . . Active Scanning Responses . | . . . . . Cargo Convoy Interrupts . | . . . . . Stealth | -11 -10 -10 -9 -9 --------- Run | Jun Mat Min Mat Min Distress Signals 1 | . . . 1 . Communications Jammed . | . . . . . Distress Signals . | . . . . . Times Spotted 30 | . 3 2 9 16 Peak Tracking Total 8 | . 3 2 5 8 Tactical Retreats 1 | . . . . 1 Traps | -11 -10 -10 -9 -9 ------- Run | Jun Mat Min Mat Min Traps Triggered . | . . . . . Indirectly . | . . . . . Trap Hack Attempts . | . . . . . Triggered . | . . . . . Disarmed . | . . . . . Reprogrammed 6 | . 6 . . . Reused . | . . . . . Traps Extracted . | . . . . . Installed . | . . . . . Triggered . | . . . . . Machines | -11 -10 -10 -9 -9 ---------- Run | Jun Mat Min Mat Min Machines Disabled . | . . . . . Max in Single Turn . | . . . . . Machines Repaired . | . . . . . Machines Sabotaged . | . . . . . Overloaded Fab Kills . | . . . . . Hacking | -11 -10 -10 -9 -9 --------- Run | Jun Mat Min Mat Min Machines Accessed 5 | . 2 . 3 . Terminals 5 | . 2 . 3 . Fabricators . | . . . . . Repair Stations . | . . . . . Recycling Units . | . . . . . Scanalyzers . | . . . . . Garrison Access . | . . . . . Total Hacks 13 | . 5 . 8 . Successful 7 | . 3 . 4 . Failed 6 | . 2 . 4 . Catastrophic . | . . . . . Database Lockouts . | . . . . . Manual 13 | . 5 . 8 . Terminals 13 | . 5 . 8 . Fabricators . | . . . . . Repair Stations . | . . . . . Recycling Units . | . . . . . Scanalyzers . | . . . . . Garrison Access . | . . . . . Terminal Hacks 6 | . 3 . 3 . Prototype ID Bank 2 | . . . 2 . Branch Access Points 1 | . 1 . . . Unreport Threat 1 | . . . 1 . Reprogram Traps 1 | . 1 . . . Hauler Manifests 1 | . 1 . . . Fabricator Hacks . | . . . . . Repair Station Hacks . | . . . . . Recycling Unit Hacks . | . . . . . Scanalyzer . | . . . . . Garrison Access Hacks . | . . . . . Unauthorized Hacks 1 | . . . 1 . Terminals 1 | . . . 1 . Botnet 1 | . . . 1 . Fabricators . | . . . . . Repair Stations . | . . . . . Recycling Units . | . . . . . Scanalyzers . | . . . . . Garrison Access . | . . . . . Data Cores Recovered 1 | . . . 1 . Used . | . . . . . Hacking Detections 5 | . 2 . 3 . Full Trace Events . | . . . . . Feedback Events . | . . . . . Feedback Blocked . | . . . . . Robot Schematics Acquired . | . . . . . Robots Built . | . . . . . Authchips . | . . . . . Time . | . . . . . Total Robot Build Rating . | . . . . . Part Schematics Acquired . | . . . . . Parts Built . | . . . . . Authchips . | . . . . . Time . | . . . . . Total Part Build Rating . | . . . . . Parts Repaired . | . . . . . Time . | . . . . . Parts Recycled . | . . . . . Recycled Matter . | . . . . . Retrieved Matter . | . . . . . Retrieved Components . | . . . . . Parts Scanalyzed . | . . . . . Part Schematics Acquired . | . . . . . Parts Damaged . | . . . . . Bothacking | -11 -10 -10 -9 -9 ------------ Run | Jun Mat Min Mat Min Used RIF Installer . | . . . . . Robots Hacked . | . . . . . Non-combat . | . . . . . Combat . | . . . . . Robot Hacks Applied . | . . . . . Relay Couplers Released . | . . . . . Fabnet Peak Effective % . | . . . . . Robots Rewired . | . . . . . Allies Hacked . | . . . . . Hacks Repelled . | . . . . . Allies | -11 -10 -10 -9 -9 -------- Run | Jun Mat Min Mat Min Total Allies . | . . . . . Largest Group . | . . . . . Highest-Rated Group . | . . . . . Highest-Rated Ally . | . . . . . Total Orders . | . . . . . Ally Attacks . | . . . . . Total Damage . | . . . . . Kills . | . . . . . Allies Corrupted . | . . . . . Allies Melted . | . . . . . Intel | -11 -10 -10 -9 -9 ------- Run | Jun Mat Min Mat Min Robot Analysis Total . | . . . . . Derelict Logs Recovered . | . . . . . Drone Launches . | . . . . . Drone Recoveries . | . . . . . Exploration | -11 -10 -10 -9 -9 ------------- Run | Jun Mat Min Mat Min Turns Passed 711 | 74 239 38 177 183 Spaces Moved 361 | 40 147 14 84 76 Core 11 | 11 . . . . Treads 350 | 29 147 14 84 76 Legs . | . . . . . Wheels . | . . . . . Hover . | . . . . . Flight . | . . . . . Fastest Speed 50 | 50 160 160 160 160 Average Speed 158 | 144 160 160 160 160 Slowest Speed 200 | 200 160 160 160 160 Overloaded Moves . | . . . . . Propulsion Burnouts . | . . . . . Robots Hopped . | . . . . . Cave-ins Triggered . | . . . . . Exploration Rate (%) 15 | 3 28 4 14 30 Regions Visited 4 Branch Regions 2 Pre-discovered Areas 1 | . . 1 . . Known Exits Taken 1 | . 1 . . . Unknown Exits Taken 3 | 1 . 1 1 . Scrap Searched 1 | . . . . 1 Spaces Dug . | . . . . . Terrain Destroyed . | . . . . . Melee . | . . . . . Projectile . | . . . . . AOE . | . . . . . Terrain Rammed . | . . . . . Walls Destroyed . | . . . . . Machines Disabled . | . . . . . Actions | -11 -10 -10 -9 -9 --------- Run | Jun Mat Min Mat Min Total 433 | 56 150 19 105 103 Wait . | . . . . . Move 357 | 39 146 13 83 76 Hop . | . . . . . Pick Up 18 | 12 2 . 4 . Fast Attach 3 | . 1 . 2 . Attach 8 | 5 1 . . 2 Detach . | . . . . . Swap 2 | . . . 1 1 Drop 4 | . . . 4 . Fire 41 | . . 6 11 24 Melee . | . . . . . Ram . | . . . . . Kick . | . . . . . Crush . | . . . . . Escape Stasis . | . . . . . Rewire . | . . . . . Trap . | . . . . . Miscellaneous . | . . . . . Route ------- -11/Junkyard -10/Materials (discovered 2 exits: *Min x2) -10/Mines -9/Materials -9/Mines (discovered 1 exit: [*Mat]) History --------- Turn | Location | Event 21 | -11/Junkyard | Discovered new exit (range 15) 75 | -11/Junkyard | Entered Materials 264 | -10/Materials | Identified exit to Mines 314 | -10/Materials | Entered Mines 329 | -10/Mines | Build established: Mutant 338 | -10/Mines | Discovered new exit (range 10) 339 | -10/Mines | Learned location of Storage (-9) 351 | -10/Mines | Met a Derelict bent on vengeance 352 | -10/Mines | Entered Materials 352 | -9/Materials | Evolved 2 slots: Utility x1, Weapon x1 475 | -9/Materials | Discovered new exit (range 9) 529 | -9/Materials | Entered Mines 623 | -9/Mines | Assembled infested the area 654 | -9/Mines | Discovered new exit (range 9) 699 | -9/Mines | Core integrity fell below 50% 702 | -9/Mines | Destroyed 7 combat bots 712 | -9/Mines | Self-destructed Last Messages --------------- 00683_ U-05 Engineer builds a Wall. 00684_ The unstable cave ceiling collapses. 00684_ K-01 Serf collects debris. 00689_ The unstable cave ceiling collapses. 00691_ K-01 Serf collects debris. 00693_ The unstable cave ceiling collapses. 00693_ Med. Laser destroyed. 00693_ Lgt. Treads destroyed. 00694_ The unstable cave ceiling collapses. 00694_ K-01 Serf collects debris. 00695_ Lgt. Assault Rifle destroyed. 00699_ K-01 Serf collects debris. 00702_ Destroyed Asb. Hover Unit. 00702_ K-01 Serf collects debris. 00704_ The unstable cave ceiling collapses. 00704_ EM Pulse Gun destroyed. 00705_ as-05244 destroyed. 00705_ K-01 Serf collects debris. 00709_ as-35806 destroyed. 00711_ Identified Adv. Beam Cannon. Map ----- +----------------------------------------------------+ | ?????????????????????????????????????????????????? | | ?????????????????????????????????????????????????? | | ?????????????????????????????????????????????????? | | ?????????????????????????????????????????????????? | | ?????????????????????????????????????????????????? | | ?????????????????????????????????????????????????? | | ?????????????????????????????????????????????????? | | ?????????????????????????????????????????????????? | | ?????????????????????????????????????????????????? | | ?????????????????????????????????????????????????? | | ?????????????????????????????????????????????????? | | ?????????????????????????????????????????????????? | | ?????????????????????????????????????????????????? | | #####????????????????????????????????????????????? | | ?^ ##??????????????????######???????????????????? | | # # ####??????????????? #???????????????????? | | # ## ??????????????? #???????????????????? | | # ## #??????????????# < #???????????????????? | | ^##^ ## #?????????????## ####????????????????? | | ## #???####??????#" ?????????????????? | | ## #??## ###???##" ##??????????????????? | | ## #### #### ##?## ##??????????????????? | | ## #### """ ### "#??????????????????? | | ### """ # ## ##??????????????????? | | ####### #?## """% [ ## a####*## ????????? | | ??????# #??# !% !%k %%@ =%! ????????? | | ??????# #??## ## ! a%% ????????? | | ??????# #???### ### ## # # ## % #????????? | | ??????# #?????# ## # # ##?? ##?????????? | | ??????# ????? ### # ##??????## #??????????? | | ??????# #?????###?### #####?????????????????????? | | ??????# #???????????###??????????????????????????? | | #?????? ?????????????????????????????????????????? | | #????? ?????????????????????????????????????????? | | ????? ?????????????????????????????????????????? | | ????? ?????????????????????????????????????????? | | ????? ?????????????????????????????????????????? | | ?????? ?????????????????????????????????????????? | | #??????#?????????????????????????????????????????? | | ?????????????????????????????????????????????????? | | ?????????????????????????????????????????????????? | | ?????????????????????????????????????????????????? | | ?????????????????????????????????????????????????? | | ?????????????????????????????????????????????????? | | ?????????????????????????????????????????????????? | | ?????????????????????????????????????????????????? | | ?????????????????????????????????????????????????? | | ?????????????????????????????????????????????????? | | | | | +----------------------------------------------------+ Best States ------------- Heat Dissipation 28 Energy Generation 10 Energy Capacity 125 Matter Stores 300 Matter Capacity 300 Sight Range 16 Terrain Scan Density 10 Armor Coverage 150 Resistance: KI 20 Resistance: TH 20 Resistance: EX 20 Resistance: EM 20 Resistance: I 20 Resistance: S 20 Resistance: P 20 Weapon Shielding 33 Evasion (%) 40 Targeting Accuracy 8 Recoil Reduction 2 Offensive Hacking 10 Item Schematics ----------------- None Robot Schematics ------------------ None Fabricated ------------ Nothing Alien Tech Used ----------------- None Achievements -------------- None Challenges ------------ None Game ------ Seed SmallNavigationRigger Manual? 0 Play Time 00:22:11 Cumulative 69.9 hours Start 2023.09.07 @ 23:39:33 End 2023.09.08 @ 00:11:15 Sessions 1 Manual Loads 0 Difficulty Adventurer Special Mode None Game No. 37 Rogue 26 Adventurer 11 Explorer 0 Win Type - Total 0 Types 0/0/0/0/0/0/0/0/0 Lore% 30 Gallery% 35 Achievement% 28 Wizard Run 0 Options --------- ASCII 0 Keyboard 0 Movement Mouse Keybinds 0 Fullscreen 1 Font 18/SmallcapsGlow Map View 76x50 Tactical HUD 1 Map Filters NONE Filters NONE Steam 1 RUN: 2ee15907-475c-4882-8dd5-bb67fe25d569